Cogmind - Beta 13 @@@ ROGUE MODE // 2024.04.06 @ 21:15:52 Player: HEQ Result: Destroyed by as-64126 with Assembled F-torch Performance ------------- Evolutions (0) 0 Regions Visited (0) 0 Robots Destroyed (0) 0 Value Destroyed (0) 0 Prototype IDs (0) 0 Alien Tech Used (0) 0 Bonus (0) 0 TOTAL SCORE: 0 Bonus ------- None Cogmind --------- Core Integrity 0/250 Matter 240/300 Energy 99/100 System Corruption 3% Temperature Cool (20) Movement Core (100) Ox1 Location -11/Scrapyard Parts ------- > --- POWER (1) -------- (None) > --- PROPULSION (2) --- (None) > --- UTILITY (2) ------ Small Storage Unit > --- WEAPON (2) ------- (None) > --- INVENTORY (8) ---- Small Laser Peak State ------------ > --- POWER ------------ Ion Engine > --- PROPULSION ------- Light Treads Light Treads > --- UTILITY ---------- Small Storage Unit > --- WEAPON ----------- Small Laser Small Laser > --- INVENTORY -------- Ion Engine [Rating: 6] Favorites ----------- Power Ion Engine Engine Ion Engine Propulsion Light Treads Treads Light Treads Wheel Compact Wheel Utility Small Storage Unit Storage Small Storage Unit Weapon Small Laser Energy Gun Small Laser Ballistic Gun Light Assault Rifle Build | -11 ------- Run | Yrd Slots Evolved . | . Power . | . Propulsion . | . Utility . | . Weapon . | . Parts Attached 10 | 10 Power 2 | 2 Engine 2 | 2 Core . | . Reactor . | . Propulsion 4 | 4 Treads 2 | 2 Leg . | . Wheel 2 | 2 Hover . | . Flight . | . Utility 1 | 1 Device . | . Storage 1 | 1 Processor . | . Hackware . | . Protection . | . Artifact . | . Weapon 3 | 3 Energy Gun 2 | 2 Energy Cannon . | . Ballistic Gun 1 | 1 Ballistic Cannon . | . Launcher . | . Special Weapon . | . Impact Weapon . | . Slashing Weapon . | . Piercing Weapon . | . Special Melee Weapon . | . Unidentified Prototypes . | . Parts Lost 5 | 5 Power 1 | 1 Propulsion 2 | 2 Utility . | . Weapon 2 | 2 Highest Loss Streak 5 | 5 To Critical Strikes . | . Average Slot Usage (%) . | . Naked Turns . | . Heaviest Build 12 | 12 Greatest Support 40 | 40 Greatest Overweight (x) 3 | 3 Average Overweight (x) . | . Largest Inventory Capacity 8 | 8 Average Capacity 7 | 7 Most Carried 4 | 4 Average Carried 1 | 1 Final Capacity 8 | 8 Final Carried 1 | 1 Class Distribution -------------------- None Dominant Class ---------------- None Resources | -11 ----------- Run | Yrd Matter Collected 216 | 216 Remotely . | . Salvage Created . | . Parts . | . Haulers Intercepted . | . Recyclers Shooed . | . Parts Field Recycled . | . Retrieved Matter . | . Parts Self-Destructed . | . Prevented . | . Kills | -11 ------- Run | Yrd Combat Hostiles Destroyed . | . Classes Destroyed . | . Best Kill Streak . | . Combat Bots Only . | . Max Kills in Single Turn . | . Gunslinging . | . Exploded . | . Melee . | . Uniques/NPCs Destroyed . | . Combat | -11 -------- Run | Yrd Hostile Shots Fired 49 | 49 Missed 14 | 14 Damage Taken 797 | 797 Core 255 | 255 Absorbed by Shields . | . Core Remaining (%) . | . Volleys Fired 4 | 4 Largest 2 | 2 Hottest 60 | 60 Shots Fired 8 | 8 Gun 8 | 8 Cannon . | . Launcher . | . Special . | . Kinetic 4 | 4 Thermal 4 | 4 Explosive . | . Electromagnetic . | . Robot Hit Streak 6 | 6 Robot Miss Streak 1 | 1 Penetration Max . | . Secondary Targets . | . Shots Hit Robots 7 | 7 Core Hits 3 | 3 Critical Kills . | . Critical Parts Destroyed . | . Critical Strikes . | . Melee Attacks . | . Impact . | . Slashing . | . Piercing . | . Sneak Attacks . | . Combat Hostiles . | . Follow-up Attacks . | . Damage Inflicted 65 | 65 Guns 64 | 64 Cannons . | . Explosions . | . Melee . | . Ramming 1 | 1 Kinetic 31 | 31 Thermal 33 | 33 Explosive . | . Electromagnetic . | . Impact . | . Slashing . | . Piercing . | . Highest Corruption 3 | 3 Average Corruption 2 | 2 Corruption Purged . | . Corruption Blocked . | . Effects 1 | 1 Alerts 1 | 1 Overload Shots . | . Overflow Damage . | . Projectiles . | . Explosions . | . Melee . | . Knockbacks . | . Impact . | . Kinetic . | . Secondary . | . Self-Inflicted Damage . | . Shots . | . Rammed 1 | 1 Targets Rammed 1 | 1 Kicked . | . Crushed . | . Highest Temperature 20 | 20 Average Temperature 13 | 13 Received Heat Transfer 60 | 60 Siege Activations . | . Robots Corrupted . | . Combat Hostiles . | . Parts Fried . | . Impact Corruptions . | . Robots Melted . | . Combat Hostiles . | . Parts Melted . | . Heat Transferred 75 | 75 Parts Sabotaged . | . Parts Stolen . | . Parts Stripped . | . Power Chain Reactions . | . Alert | -11 ------- Run | Yrd Peak Influence 15 | 15 Initial . | . Average . | . Maximum Alert Level . | . Low Security (%) 100 | 100 Level 1 . | . Level 2 . | . Level 3 . | . Level 4 . | . Level 5 . | . High Security . | . Max Security . | . Squads Dispatched . | . Investigation . | . Extermination . | . Reinforcement . | . Assault . | . Garrison . | . Intercept . | . Searches Triggered . | . Construction Impeded . | . Haulers Reinforced . | . Active Scanning Responses . | . Cargo Convoy Interrupts . | . Stealth | -11 --------- Run | Yrd Distress Signals . | . Communications Jammed . | . Distress Signals . | . Times Spotted 12 | 12 Peak Tracking Total 10 | 10 Tactical Retreats . | . Traps | -11 ------- Run | Yrd Traps Triggered . | . Indirectly . | . Trap Hack Attempts . | . Triggered . | . Disarmed . | . Reprogrammed . | . Reused . | . Traps Extracted . | . Installed . | . Triggered . | . Machines | -11 ---------- Run | Yrd Machines Disabled . | . Max in Single Turn . | . Machines Repaired . | . Machines Dismantled . | . Machines Sabotaged . | . Overloaded Fab Kills . | . Hacking | -11 --------- Run | Yrd Machines Accessed . | . Terminals . | . Fabricators . | . Repair Stations . | . Recycling Units . | . Scanalyzers . | . Garrison Access . | . Total Hacks . | . Successful . | . Failed . | . Catastrophic . | . Database Lockouts . | . Manual . | . Terminals . | . Fabricators . | . Repair Stations . | . Recycling Units . | . Scanalyzers . | . Garrison Access . | . Terminal Hacks . | . Fabricator Hacks . | . Repair Station Hacks . | . Recycling Unit Hacks . | . Scanalyzer . | . Garrison Access Hacks . | . Unauthorized Hacks . | . Terminals . | . Fabricators . | . Repair Stations . | . Recycling Units . | . Scanalyzers . | . Garrison Access . | . Data Cores Recovered . | . Used . | . Hacking Detections . | . Full Trace Events . | . Feedback Events . | . Feedback Blocked . | . Robot Schematics Acquired . | . Robots Built . | . Authchips . | . Time . | . Total Robot Build Rating . | . Part Schematics Acquired . | . Parts Built . | . Authchips . | . Time . | . Total Part Build Rating . | . Parts Repaired . | . Time . | . Parts Recycled . | . Recycled Matter . | . Retrieved Matter . | . Retrieved Components . | . Parts Scanalyzed . | . Part Schematics Acquired . | . Parts Damaged . | . Bothacking | -11 ------------ Run | Yrd Used RIF Installer . | . Robots Hacked . | . Non-combat . | . Combat . | . Robot Hacks Applied . | . Relay Couplers Released . | . Fabnet Peak Effective % . | . Robots Rewired . | . Allies Hacked . | . Hacks Repelled . | . Allies | -11 -------- Run | Yrd Total Allies . | . Largest Group . | . Highest-Rated Group . | . Highest-Rated Ally . | . Total Orders . | . Ally Attacks . | . Total Damage . | . Kills . | . Allies Corrupted . | . Allies Melted . | . Intel | -11 ------- Run | Yrd Robot Analysis Total . | . Derelict Logs Recovered . | . Drone Launches . | . Drone Recoveries . | . Exploration | -11 ------------- Run | Yrd Turns Passed 1395 | 1395 Spaces Moved 626 | 626 Core 9 | 9 Treads 553 | 553 Legs . | . Wheels 64 | 64 Hover . | . Flight . | . Fastest Speed 50 | 50 Average Speed 152 | 152 Slowest Speed 200 | 200 Overloaded Moves . | . Propulsion Burnouts . | . Robots Hopped . | . Cave-ins Triggered . | . Exploration Rate (%) 52 | 52 Regions Visited . Branch Regions . Pre-discovered Areas . | . Known Exits Taken . | . Unknown Exits Taken . | . Scrap Searched . | . Spaces Dug . | . Terrain Destroyed . | . Melee . | . Projectile . | . AOE . | . Terrain Rammed . | . Walls Destroyed . | . Machines Disabled . | . Actions | -11 --------- Run | Yrd Total 1058 | 1058 Wait 404 | 404 Move 626 | 626 Hop . | . Pick Up 10 | 10 Fast Attach . | . Attach 8 | 8 Detach . | . Swap 2 | 2 Drop 3 | 3 Fire 4 | 4 Melee . | . Ram 1 | 1 Kick . | . Crush . | . Escape Stasis . | . Rewire . | . Trap . | . Miscellaneous . | . Route ------- -11/Scrapyard (discovered 1 exit: [*Mat]) History --------- Turn | Location | Event 12 | -11/Scrapyard | Discovered new exit (range 15) 1270 | -11/Scrapyard | Assembled infested the area 1389 | -11/Scrapyard | Core integrity fell below 50% 1394 | -11/Scrapyard | Core integrity fell below 20% 1396 | -11/Scrapyard | Destroyed by as-64126 with Assembled F-torch Last Messages --------------- Demolisher response squad. [Achievement: Curiosity Killed The Cat] 01270_ C-30 ARC bursts open, deploying its payload. 01270_ D-53 Grenadier unfolds itself. 01277_ D-53 Grenadier destroyed. 01283_ The unstable cave ceiling collapses. 01283_ D-53 Grenadier destroyed. 01302_ The unstable cave ceiling collapses. 01320_ Dropped Lgt. Treads. 01323_ Acquired Com. Wheel. 01331_ Dropped Ion Engine. 01360_ Lgt. Assault Rifle destroyed. 01382_ Ion Engine destroyed. 01389_ Com. Wheel destroyed. 01391_ Slammed into as-64126. 01391_ Destabilizing: System corrupted (+1). 01392_ Sml. Laser destroyed. 01392_ System corrupted by crushing effect (+2). 01396_ System corrupted: IFF burst signal emitted. 01396_ Com. Wheel destroyed. Map ----- +----------------------------------------------------+ | # #???????????#### ##?# #????????????? | | # #???????????# #?# #????????????? | | # #???????????# #?# #????????????? | | ################# ###### #????????????? | | # # #????????????? | | # # #????????????? | | # ##################### # #????????????? | | # #???????????????????# #????????????? | | # ###?????????????????# ###########????????????? | | # # #?????????????????# #??????????????????????? | | # #???????????####### ########???????????????? | | # # #??????????## # # #???????????????? | | # ###??????????# # # #???????????????? | | # #????????????# # # #??####???###???# | | # #????????????# #??# ##### ##### | | # #????????????## # #??# | | # #?????????????##### #??# ##### ##### | | # #????????????????### # #####??# #???###???# | | # #???##########???# ###???# #???######? | | # #???# #???# % ##?## ##? #? | | # #???# #???# ### # #? | | # ##### #####a a % # #? | | = a a *%= = #??? | | = a aa # ### # ####???? | | #* == ##### < # ## ####??????? | | # #???# aaa@ # %=## #?????????? | | # #???### # # # = ## #?????????? | | #### ####?????### ##### *% ## #?????##??? | | #??????????###???# ! ## ###### ###? | | #????????????????# #? | | #????????????????# ## #? | | ################## ## ###########? | | ####??????????? | | ########### ####?????????????? | | # # ###????????????????? | | ################## # #??????????????????? | | ????????# # # #??????????????????? | | ????????# ##??????????????????? | | ????????# # # #??????????????????? | | ????????# # # #??????????????????? | | ????????# # # #??????????????????? | | ????????# # ## #??????????????????? | | ????????# # ###########??????????????????? | | ????????# # # #??????????????????????????? | | ????????# # #??????????????????????????? | | ????????########## # #??????????????????????????? | | ?????????????????# ###??????????????????????????? | | ?????????????????# #????????????????????????????? | | ?????????????????# #????????????????????????????? | | ?????????????????# ##########???????????????????? | +----------------------------------------------------+ Best States ------------- Heat Dissipation 25 Energy Generation 10 Energy Capacity 250 Matter Stores 246 Matter Capacity 300 Sight Range 16 Terrain Scan Density 10 Evasion (%) 40 Recoil Reduction 2 Item Schematics ----------------- None Robot Schematics ------------------ None Fabricated ------------ Nothing Alien Tech Used ----------------- None Achievements -------------- Curiosity Killed The Cat Challenges ------------ None Game ------ Seed MappingActuatorNullifier Manual? 0 Play Time 00:14:28 Cumulative 10.4 hours Start 2024.04.06 @ 21:07:32 End 2024.04.06 @ 21:15:52 Sessions 0 Manual Loads 0 Difficulty Rogue Special Mode None Game No. 9 Rogue 6 Adventurer 0 Explorer 3 Win Type - Total 0 Types 0/0/0/0/0/0/0/0/0 Lore% 9 Gallery% 19 Achievement% 12 Wizard Run 0 Options --------- Layout 1 ASCII 0 Keyboard 0 Movement Mouse Keybinds 0 Fullscreen 1 Font 20/SmallcapsGlow Map View 61x41 Zoom Use 0% Tactical HUD 1 Map Filters NONE Filters NONE Steam 0 RUN: b3dcdf9a-b324-4420-8e88-47721d296e96